fUST/lending_fUST_20250716
["ID","MTS","AMOUNT","RATE_DAILY","PERIOD"]
[372490730,1752663035748,-460.0,0.0002,2]
[372490731,1752663035757,-460.0,0.0002,2]
[372490732,1752663035766,-460.0,0.0002,2]
[372490733,1752663035776,-460.0,0.0002,2]
[372490734,1752663035786,-460.0,0.0002,2]
[372490735,1752663035796,-1046.58,0.0002,2]
[372490736,1752663035805,-460.0,0.0002,2]
[372490737,1752663035814,-460.0,0.0002,2]
[372490738,1752663035824,-460.0,0.0002,2]
[372490739,1752663035833,-481.44,0.0002,2]
[372490740,1752663035843,-460.0,0.0002,2]
[372490741,1752663035852,-460.0,0.0002,2]
[372490742,1752663035861,-460.0,0.0002,2]
[372490743,1752663035871,-2219.29,0.0002,2]
[372490744,1752663035881,-460.0,0.0002,2]
[372490745,1752663035890,-822.53,0.0002,2]
[372490746,1752663035899,-581.581735,0.0002,2]
[372490747,1752663035909,-460.0,0.0002,2]
[372490748,1752663035919,-460.0,0.0002,2]
[372490749,1752663035928,-460.0,0.0002,2]
[372490750,1752663035937,-460.0,0.0002,2]
[372490751,1752663035947,-690.47,0.0002,2]
[372490752,1752663035956,-460.0,0.0002,2]
[372490753,1752663035965,-735.49,0.0002,2]
[372490754,1752663035974,-460.0,0.0002,2]
[372490755,1752663035985,-1211.98,0.0002,2]
[372490756,1752663035994,-460.0,0.0002,2]
[372490757,1752663036003,-460.0,0.0002,2]
[372490758,1752663036013,-460.0,0.0002,2]
[372490759,1752663036023,-460.0,0.0002,2]
[372490760,1752663036032,-460.0,0.0002,2]
[372490761,1752663036042,-286.8930995,0.0002,2]
[372490762,1752663036051,-632.06,0.0002,2]
[372490763,1752663036061,-1390.3,0.0002,2]
[372490764,1752663036071,-460.0,0.0002,2]
[372490765,1752663036081,-738.43,0.0002,2]
[372490766,1752663036090,-460.0,0.0002,2]
[372490767,1752663036100,-460.0,0.0002,2]
[372490768,1752663036109,-460.0,0.0002,2]
[372490769,1752663036119,-460.0,0.0002,2]
[372490770,1752663036129,-460.0,0.0002,2]
[372490771,1752663036138,-460.0,0.0002,2]
[372490772,1752663036148,-286.73992899,0.00020009,2]
[372490773,1752663036158,-180.40940772,0.00020184,2]
[372490774,1752663036175,-250.084575,0.00020187,2]
[372490775,1752663036185,-200.82605146,0.00020273,2]
[372490776,1752663036194,-460.0,0.00020273,2]
[372490777,1752663036204,-460.0,0.00020273,2]
[372490778,1752663036215,-460.0,0.00020273,2]
[372490779,1752663036224,-460.0,0.00020273,2]
[372490780,1752663036234,-460.0,0.00020273,2]
[372490781,1752663036245,-460.0,0.00020273,2]
[372490782,1752663036256,-460.0,0.00020273,2]
[372490783,1752663036266,-460.0,0.00020273,2]
[372490784,1752663036276,-460.0,0.00020273,2]
[372490785,1752663036286,-460.0,0.00020273,2]
[372490786,1752663036296,-460.0,0.00020273,2]
[372490787,1752663036306,-845.86,0.00020273,2]
[372490788,1752663036315,-460.0,0.00020273,2]
[372490789,1752663036327,-460.0,0.00020273,2]
[372490790,1752663036336,-460.0,0.00020273,2]
[372490791,1752663036345,-460.0,0.00020273,2]
[372490792,1752663036355,-460.0,0.00020273,2]
[372490793,1752663036365,-460.0,0.00020273,2]
[372490794,1752663036374,-460.0,0.00020273,2]
[372490795,1752663036383,-460.0,0.00020273,2]
[372490796,1752663036393,-460.0,0.00020273,2]
[372490797,1752663036403,-565.57115873,0.00020273,2]
[372490798,1752663036412,-460.0,0.00020273,2]
[372490799,1752663036422,-1046.58,0.00020273,2]
[372490800,1752663036432,-582.37,0.00020273,2]
[372490801,1752663036441,-460.0,0.00020273,2]
[372490802,1752663036451,-460.0,0.00020273,2]
[372490803,1752663036462,-481.44,0.00020273,2]
[372490804,1752663036472,-460.0,0.00020273,2]
[372490805,1752663036481,-460.0,0.00020273,2]
[372490806,1752663036491,-2219.29,0.00020273,2]
[372490807,1752663036501,-460.0,0.00020273,2]
[372490808,1752663036510,-460.0,0.00020273,2]
[372490809,1752663036520,-822.53,0.00020273,2]
[372490810,1752663036529,-460.0,0.00020273,2]
[372490811,1752663036538,-460.0,0.00020273,2]
[372490812,1752663036548,-460.0,0.00020273,2]
[372490813,1752663036558,-690.47,0.00020273,2]
[372490814,1752663036568,-460.0,0.00020273,2]
[372490815,1752663036579,-735.49,0.00020273,2]
[372490816,1752663036589,-460.0,0.00020273,2]
[372490817,1752663036598,-1211.98,0.00020273,2]
[372490818,1752663036696,-460.0,0.00020273,2]
[372490819,1752663036707,-460.0,0.00020273,2]
[372490820,1752663036717,-460.0,0.00020273,2]
[372490821,1752663036726,-460.0,0.00020273,2]
[372490822,1752663036736,-460.0,0.00020273,2]
[372490823,1752663036746,-632.06,0.00020273,2]
[372490824,1752663036755,-1390.3,0.00020273,2]
[372490825,1752663036764,-460.0,0.00020273,2]
[372490826,1752663036774,-738.43,0.00020273,2]
[372490827,1752663036783,-460.0,0.00020273,2]
[372490828,1752663036793,-460.0,0.00020273,2]
[372490829,1752663036802,-460.0,0.00020273,2]
[372490830,1752663036812,-460.0,0.00020273,2]
[372490831,1752663036821,-460.0,0.00020273,2]
[372490832,1752663036831,-460.0,0.00020273,2]
[372490833,1752663036840,-231.4097255,0.0002028,2]
[372490834,1752663036849,-1000.0,0.000204,2]
[372490835,1752663036859,-1068.72256492,0.00020447,2]
[372490836,1752663036870,-456.11139275,0.00020547,2]
[372490837,1752663036879,-460.0,0.00020547,2]
[372490838,1752663036889,-460.0,0.00020547,2]
[372490839,1752663036898,-429.63968313,0.00020547,2]
[372490840,1752663036909,-460.0,0.00020547,2]
[372490841,1752663036918,-460.0,0.00020547,2]
[372490842,1752663036927,-460.0,0.00020547,2]
[372490843,1752663036937,-411.78006495,0.00020547,2]
[372490844,1752663036946,-460.0,0.00020547,2]
[372490845,1752663036955,-845.86,0.00020547,2]
[372490846,1752663036965,-460.0,0.00020547,2]
[372490847,1752663036975,-460.0,0.00020547,2]
[372490848,1752663036984,-460.0,0.00020547,2]
[372490849,1752663036994,-460.0,0.00020547,2]
[372490850,1752663037003,-551.19432355,0.00020547,2]
[372490851,1752663037013,-460.0,0.00020547,2]
[372490852,1752663037023,-460.0,0.00020547,2]
[372490853,1752663037032,-460.0,0.00020547,2]
[372490854,1752663037041,-221.64,0.00020547,2]
[372490855,1752663037051,-460.0,0.00020547,2]
[372490856,1752663037063,-1046.58,0.00020547,2]
[372490857,1752663037074,-460.0,0.00020547,2]
[372490858,1752663037084,-460.0,0.00020547,2]
[372490859,1752663037093,-481.44,0.00020547,2]
[372490860,1752663037103,-460.0,0.00020547,2]
[372490861,1752663037113,-460.0,0.00020547,2]
[372490862,1752663037123,-2219.29,0.00020547,2]
[372490863,1752663037133,-460.0,0.00020547,2]
[372490864,1752663037142,-460.0,0.00020547,2]
[372490865,1752663037152,-822.53,0.00020547,2]
[372490866,1752663037164,-460.0,0.00020547,2]
[372490867,1752663037174,-151.92928204,0.00020547,2]
[372490868,1752663037184,-492.37,0.00020547,2]
[372490869,1752663037195,-690.47,0.00020547,2]
[372490870,1752663037207,-460.0,0.00020547,2]
[372490871,1752663037216,-735.49,0.00020547,2]
[372490872,1752663037226,-460.0,0.00020547,2]
[372490873,1752663037236,-1211.98,0.00020547,2]
[372490874,1752663037247,-460.0,0.00020547,2]
[372490875,1752663037257,-460.0,0.00020547,2]
[372490876,1752663037266,-460.0,0.00020547,2]
[372490877,1752663037275,-460.0,0.00020547,2]
[372490878,1752663037285,-460.0,0.00020547,2]
[372490879,1752663037294,-632.06,0.00020547,2]
[372490880,1752663037304,-1390.3,0.00020547,2]
[372490881,1752663037313,-460.0,0.00020547,2]
[372490882,1752663037322,-738.43,0.00020547,2]
[372490883,1752663037332,-280.62,0.00020547,2]
[372490884,1752663037342,-460.0,0.00020547,2]
[372490885,1752663037352,-460.0,0.00020547,2]
[372490886,1752663037362,-460.0,0.00020547,2]
[372490887,1752663037371,-460.0,0.00020547,2]
[372490888,1752663037384,-460.0,0.00020547,2]
[372490889,1752663037397,-160.0,0.00020598,2]
[372490890,1752663037408,-230.8109288,0.00020598,2]
[372490891,1752663037418,-160.0,0.00020598,2]
[372490892,1752663037428,-12605.49131908,0.00020598,2]
[372490893,1752663037438,-160.0,0.00020598,2]
[372490894,1752663037448,-160.0,0.00020598,2]
[372490895,1752663037459,-160.0,0.00020598,2]
[372490896,1752663037469,-160.0,0.00020598,2]
[372490897,1752663037479,-214.40824756,0.00020598,2]
[372490898,1752663037489,-476.07036022,0.00020598,2]
[372490899,1752663037499,-520.85416667,0.00020598,2]
[372490900,1752663037508,-160.0,0.00020598,2]
[372490901,1752663037518,-215.5496034,0.00020598,2]
[372490902,1752663037528,-160.0,0.00020599,2]
[372490903,1752663037537,-838.99048831,0.00020599,2]
[372490904,1752663037547,-420.0,0.00020792,2]
[372490905,1752663037556,-420.0,0.00020792,2]
[372490906,1752663037565,-460.0,0.00020821,2]
[372490907,1752663037575,-460.0,0.00020821,2]
[372490908,1752663037585,-460.0,0.00020821,2]
[372490909,1752663037594,-460.0,0.00020821,2]
[372490910,1752663037603,-460.0,0.00020821,2]
[372490911,1752663037613,-460.0,0.00020821,2]
[372490912,1752663037622,-845.86,0.00020821,2]
[372490913,1752663037632,-460.0,0.00020821,2]
[372490914,1752663037642,-460.0,0.00020821,2]
[372490915,1752663037652,-279.08028957,0.00020821,2]
[372490916,1752663037662,-460.0,0.00020821,2]
[372490917,1752663037671,-460.0,0.00020821,2]
[372490918,1752663037682,-460.0,0.00020821,2]
[372490919,1752663037691,-460.0,0.00020821,2]
[372490920,1752663037702,-1046.58,0.00020821,2]
[372490921,1752663037711,-460.0,0.00020821,2]
[372490922,1752663037721,-460.0,0.00020821,2]
[372490923,1752663037730,-481.44,0.00020821,2]
[372490924,1752663037739,-460.0,0.00020821,2]
[372490925,1752663037747,-460.0,0.00020821,2]
[372490926,1752663037756,-2219.29,0.00020821,2]
[372490927,1752663037765,-460.0,0.00020821,2]
[372490928,1752663037775,-460.0,0.00020821,2]
[372490929,1752663037785,-822.53,0.00020821,2]
[372490930,1752663037794,-460.0,0.00020821,2]
[372490931,1752663037803,-690.47,0.00020821,2]
[372490932,1752663037812,-456.03483581,0.00020821,2]
[372490933,1752663037821,-735.49,0.00020821,2]
[372490934,1752663037830,-460.0,0.00020821,2]
[372490935,1752663037838,-1211.98,0.00020821,2]
[372490936,1752663037847,-460.0,0.00020821,2]
[372490937,1752663037856,-460.0,0.00020821,2]
[372490938,1752663037865,-460.0,0.00020821,2]
[372490939,1752663037875,-460.0,0.00020821,2]
[372490940,1752663037884,-632.06,0.00020821,2]
[372490941,1752663037893,-1390.3,0.00020821,2]
[372490942,1752663037902,-738.43,0.00020821,2]
[372490943,1752663037911,-460.0,0.00020821,2]
[372490944,1752663037922,-460.0,0.00020821,2]
[372490945,1752663037931,-460.0,0.00020821,2]
[372490946,1752663037940,-460.0,0.00020821,2]
[372490947,1752663037949,-460.0,0.00020821,2]
[372490948,1752663037958,-460.0,0.00020821,2]
[372490949,1752663037967,-1116.0,0.00020893,2]
[372490950,1752663037975,-1680.0,0.00020894,2]
[372490951,1752663037985,-768.34910763,0.000209,4]
[372490952,1752663037994,-286.73992899,0.00020941,2]
[372490953,1752663038002,-293.42668785,0.00020948,2]
[372490954,1752663038011,-595.411,0.00021033,2]
[372490955,1752663038021,-768.34910746,0.00021072,4]
[372490956,1752663038031,-460.0,0.00021095,2]
[372490957,1752663038040,-460.0,0.00021095,2]
[372490958,1752663038049,-460.0,0.00021095,2]
[372490959,1752663038059,-460.0,0.00021095,2]
[372490960,1752663038068,-460.0,0.00021095,2]
[372490961,1752663038078,-460.0,0.00021095,2]
[372490962,1752663038088,-845.86,0.00021095,2]
[372490963,1752663038097,-342.47,0.00021095,2]
[372490964,1752663038108,-460.0,0.00021095,2]
[372490965,1752663038117,-460.0,0.00021095,2]
[372490966,1752663038127,-460.0,0.00021095,2]
[372490967,1752663038137,-460.0,0.00021095,2]
[372490968,1752663038146,-545.60287452,0.00021095,2]
[372490969,1752663038156,-1046.58,0.00021095,2]
[372490970,1752663038167,-460.0,0.00021095,2]
[372490971,1752663038176,-460.0,0.00021095,2]
[372490973,1752663038186,-481.44,0.00021095,2]
[372490974,1752663038196,-460.0,0.00021095,2]
[372490975,1752663038206,-2219.29,0.00021095,2]
[372490976,1752663038215,-460.0,0.00021095,2]
[372490977,1752663038224,-460.0,0.00021095,2]
[372490978,1752663038234,-822.53,0.00021095,2]
[372490979,1752663038245,-460.0,0.00021095,2]
[372490980,1752663038255,-690.47,0.00021095,2]
[372490981,1752663038263,-735.49,0.00021095,2]
[372490982,1752663038271,-460.0,0.00021095,2]
[372490983,1752663038279,-1211.98,0.00021095,2]
[372490984,1752663038289,-460.0,0.00021095,2]
[372490985,1752663038298,-460.0,0.00021095,2]
[372490986,1752663038307,-632.06,0.00021095,2]
[372490987,1752663038317,-1390.3,0.00021095,2]
[372490988,1752663038326,-738.43,0.00021095,2]
[372490989,1752663038336,-460.0,0.00021095,2]
[372490990,1752663038345,-460.0,0.00021095,2]
[372490991,1752663038356,-460.0,0.00021095,2]
[372490992,1752663038366,-460.0,0.00021095,2]
[372490993,1752663038375,-460.0,0.00021095,2]
[372490994,1752663038385,-460.0,0.00021095,2]
[372490995,1752663038394,-500.0,0.00021164,2]
[372490996,1752663038403,-768.34910746,0.00021245,4]
[372490997,1752663038412,-460.0,0.00021369,2]
[372490998,1752663038421,-460.0,0.00021369,2]
[372490999,1752663038431,-529.6513231,0.00021369,2]
[372491000,1752663038440,-460.0,0.00021369,2]
[372491001,1752663038450,-460.0,0.00021369,2]
[372491002,1752663038460,-460.0,0.00021369,2]
[372491003,1752663038470,-845.86,0.00021369,2]
[372491004,1752663038480,-460.0,0.00021369,2]
[372491005,1752663038489,-460.0,0.00021369,2]
[372491006,1752663038500,-460.0,0.00021369,2]
[372491007,1752663038510,-460.0,0.00021369,2]
[372491008,1752663038519,-1046.58,0.00021369,2]
[372491009,1752663038529,-460.0,0.00021369,2]
[372491010,1752663038539,-481.44,0.00021369,2]
[372491011,1752663038548,-460.0,0.00021369,2]
[372491012,1752663038557,-460.0,0.00021369,2]
[372491013,1752663038566,-2219.29,0.00021369,2]
[372491014,1752663038577,-460.0,0.00021369,2]
[372491015,1752663038586,-460.0,0.00021369,2]
[372491016,1752663038595,-822.53,0.00021369,2]
[372491017,1752663038605,-224.39,0.00021369,2]
[372491018,1752663038615,-690.47,0.00021369,2]
[372491019,1752663038624,-735.49,0.00021369,2]
[372491020,1752663038633,-218.43445313,0.00021369,2]
[372491021,1752663038643,-1211.98,0.00021369,2]
[372491022,1752663038651,-460.0,0.00021369,2]
[372491023,1752663038660,-460.0,0.00021369,2]
[372491024,1752663038670,-632.06,0.00021369,2]
[372491025,1752663038679,-1390.3,0.00021369,2]
[372491026,1752663038688,-738.43,0.00021369,2]
[372491027,1752663038697,-460.0,0.00021369,2]
[372491028,1752663038707,-460.0,0.00021369,2]
[372491029,1752663038717,-460.0,0.00021369,2]
[372491030,1752663038726,-460.0,0.00021369,2]
[372491031,1752663038735,-266.35,0.00021369,2]
[372491032,1752663038745,-460.0,0.00021369,2]
[372491033,1752663038754,-768.34910746,0.00021417,5]
[372491034,1752663038763,-768.34910746,0.0002159,5]
[372491035,1752663038772,-151.229751,0.00021643,2]
[372491036,1752663038782,-151.0,0.00021643,2]
[372491037,1752663038791,-460.0,0.00021643,2]
[372491038,1752663038800,-460.0,0.00021643,2]
[372491039,1752663038810,-167.4,0.00021643,2]
[372491040,1752663038819,-483.05,0.00021643,2]
[372491041,1752663038829,-460.0,0.00021643,2]
[372491042,1752663038838,-845.86,0.00021643,2]
[372491043,1752663038848,-460.0,0.00021643,2]
[372491044,1752663038858,-460.0,0.00021643,2]
[372491045,1752663038868,-460.0,0.00021643,2]
[372491046,1752663038877,-460.0,0.00021643,2]
[372491047,1752663038887,-1046.58,0.00021643,2]
[372491048,1752663038897,-460.0,0.00021643,2]
[372491049,1752663038906,-481.44,0.00021643,2]
[372491050,1752663038999,-460.0,0.00021643,2]
[372491051,1752663039009,-460.0,0.00021643,2]
[372491052,1752663039018,-2219.29,0.00021643,2]
[372491053,1752663039028,-542.4,0.00021643,2]
[372491054,1752663039037,-460.0,0.00021643,2]
[372491055,1752663039047,-822.53,0.00021643,2]
[372491056,1752663039057,-690.47,0.00021643,2]
[372491057,1752663039066,-735.49,0.00021643,2]
[372491058,1752663039075,-1211.98,0.00021643,2]
[372491059,1752663039085,-460.0,0.00021643,2]
[372491060,1752663039094,-460.0,0.00021643,2]
[372491061,1752663039104,-632.06,0.00021643,2]
[372491062,1752663039113,-1390.3,0.00021643,2]
[372491063,1752663039122,-738.43,0.00021643,2]
[372491064,1752663039131,-460.0,0.00021643,2]
[372491065,1752663039141,-460.0,0.00021643,2]
[372491066,1752663039150,-460.0,0.00021643,2]
[372491067,1752663039160,-460.0,0.00021643,2]
[372491068,1752663039173,-500.0,0.00021705,2]
[372491069,1752663039183,-768.34910746,0.00021762,5]
[372491070,1752663039192,-286.73992899,0.00021872,2]
[372491071,1752663039203,-460.0,0.00021917,2]
[372491072,1752663039212,-460.0,0.00021917,2]
[372491073,1752663039222,-460.0,0.00021917,2]
[372491074,1752663039233,-845.86,0.00021917,2]
[372491075,1752663039244,-460.0,0.00021917,2]
[372491076,1752663039254,-460.0,0.00021917,2]
[372491077,1752663039263,-160.71,0.00021917,2]
[372491078,1752663039273,-460.0,0.00021917,2]
[372491079,1752663039282,-1046.58,0.00021917,2]
[372491080,1752663039291,-460.0,0.00021917,2]
[372491081,1752663039301,-481.44,0.00021917,2]
[372491082,1752663039311,-537.46,0.00021917,2]
[372491083,1752663039322,-460.0,0.00021917,2]
[372491084,1752663039333,-2219.29,0.00021917,2]
[372491085,1752663039343,-460.0,0.00021917,2]
[372491086,1752663039352,-822.53,0.00021917,2]
[372491087,1752663039361,-690.47,0.00021917,2]
[372491088,1752663039373,-735.49,0.00021917,2]
[372491089,1752663039383,-1211.98,0.00021917,2]
[372491090,1752663039393,-460.0,0.00021917,2]
[372491091,1752663039403,-460.0,0.00021917,2]
[372491092,1752663039413,-632.06,0.00021917,2]
[372491093,1752663039422,-1390.3,0.00021917,2]
[372491094,1752663039432,-738.43,0.00021917,2]
[372491095,1752663039441,-460.0,0.00021917,2]
[372491096,1752663039450,-460.0,0.00021917,2]
[372491097,1752663039460,-460.0,0.00021917,2]
[372491098,1752663039470,-460.0,0.00021917,2]
[372491099,1752663039479,-768.34910746,0.00021934,6]
[372491101,1752663039489,-989.74,0.00022,7]
[372491103,1752663039499,-12605.49131908,0.00022,7]
[372491105,1752663039508,-873.82,0.00022,7]
[372491107,1752663039518,-214.40824756,0.00022,7]
[372491110,1752663039527,-21119.35,0.00022,7]
[372491112,1752663039536,-768.34910746,0.00022107,6]
[372491114,1752663039546,-151.0,0.00022191,7]
[372491116,1752663039556,-151.0,0.00022191,7]
[372491118,1752663039565,-151.0,0.00022191,7]
[372491120,1752663039575,-151.0,0.00022191,7]
[372491123,1752663039584,-151.0,0.00022191,7]
[372491125,1752663039594,-151.0,0.00022191,7]
[372491127,1752663039604,-460.0,0.00022191,2]
[372491129,1752663039613,-257.012157,0.00022191,2]
[372491131,1752663039623,-460.0,0.00022191,2]
[372491133,1752663039633,-845.86,0.00022191,2]
[372491135,1752663039643,-460.0,0.00022191,2]
[372491137,1752663039652,-460.0,0.00022191,2]
[372491139,1752663039661,-460.0,0.00022191,2]
[372491141,1752663039671,-1046.58,0.00022191,2]
[372491143,1752663039681,-460.0,0.00022191,2]
[372491145,1752663039691,-481.44,0.00022191,2]
[372491147,1752663039700,-460.0,0.00022191,2]
[372491149,1752663039710,-2219.29,0.00022191,2]
[372491150,1752663039719,-460.0,0.00022191,2]
[372491151,1752663039728,-822.53,0.00022191,2]
[372491152,1752663039737,-690.47,0.00022191,2]
[372491154,1752663039747,-735.49,0.00022191,2]
[372491156,1752663039756,-1211.98,0.00022191,2]
[372491158,1752663039766,-460.0,0.00022191,2]
[372491160,1752663039775,-460.0,0.00022191,2]
[372491162,1752663039785,-632.06,0.00022191,2]
[372491164,1752663039794,-1390.3,0.00022191,2]
[372491166,1752663039804,-738.43,0.00022191,2]
[372491168,1752663039814,-460.0,0.00022191,2]
[372491170,1752663039823,-460.0,0.00022191,2]
[372491172,1752663039833,-460.0,0.00022191,2]
[372491174,1752663039842,-460.0,0.00022191,2]
[372491176,1752663039851,-768.34910746,0.00022279,6]
[372491178,1752663039861,-500.0,0.000224,2]
[372491180,1752663039871,-768.34910746,0.00022452,7]
[372491182,1752663039881,-234.45589888,0.00022465,2]
[372491184,1752663039891,-601.23,0.00022465,2]
[372491186,1752663039901,-845.86,0.00022465,2]
[372491188,1752663039910,-460.0,0.00022465,2]
[372491190,1752663039920,-460.0,0.00022465,2]
[372491192,1752663039929,-460.0,0.00022465,2]
[372491195,1752663039940,-1046.58,0.00022465,2]
[372491197,1752663039950,-460.0,0.00022465,2]
[372491198,1752663039958,-481.44,0.00022465,2]
[372491200,1752663039968,-460.0,0.00022465,2]
[372491202,1752663039978,-2219.29,0.00022465,2]
[372491204,1752663039987,-460.0,0.00022465,2]
[372491206,1752663039996,-822.53,0.00022465,2]
[372491208,1752663040006,-690.47,0.00022465,2]
[372491210,1752663040015,-1211.98,0.00022465,2]
[372491212,1752663040025,-735.49,0.00022465,2]
[372491214,1752663040034,-500.1634318,0.00022465,2]
[372491216,1752663040044,-517.55,0.00022465,2]
[372491218,1752663040053,-632.06,0.00022465,2]
[372491220,1752663040062,-1390.3,0.00022465,2]
[372491222,1752663040072,-738.43,0.00022465,2]
[372491225,1752663040082,-460.0,0.00022465,2]
[372491226,1752663040092,-460.0,0.00022465,2]
[372491228,1752663040101,-460.0,0.00022465,2]
[372491230,1752663040111,-460.0,0.00022465,2]
[372491232,1752663040120,-768.34910746,0.00022624,7]
[372491234,1752663040130,-587.0,0.00022662,2]
[372491236,1752663040139,-167.0,0.00022662,2]
[372491239,1752663040149,-1068.72256492,0.00022674,2]
[372491241,1752663040169,-845.86,0.00022739,2]
[372491243,1752663040178,-460.0,0.00022739,2]
[372491244,1752663040187,-460.0,0.00022739,2]
[372491247,1752663040196,-460.0,0.00022739,2]
[372491249,1752663040207,-1046.58,0.00022739,2]
[372491251,1752663040217,-460.0,0.00022739,2]
[372491253,1752663040226,-481.44,0.00022739,2]
[372491255,1752663040236,-460.0,0.00022739,2]
[372491257,1752663040246,-2219.29,0.00022739,2]
[372491259,1752663040255,-460.0,0.00022739,2]
[372491261,1752663040265,-822.53,0.00022739,2]
[372491263,1752663040273,-690.47,0.00022739,2]
[372491265,1752663040283,-1211.98,0.00022739,2]
[372491266,1752663040292,-735.49,0.00022739,2]
[372491268,1752663040302,-632.06,0.00022739,2]
[372491270,1752663040312,-1390.3,0.00022739,2]
[372491273,1752663040321,-738.43,0.00022739,2]
[372491274,1752663040332,-460.0,0.00022739,2]
[372491276,1752663040342,-460.0,0.00022739,2]
[372491278,1752663040351,-163.68121252,0.00022739,2]
[372491280,1752663040361,-460.0,0.00022739,2]
[372491282,1752663040371,-1017.0,0.0002277,2]
[372491284,1752663040380,-768.34910746,0.00022797,7]
[372491286,1752663040389,-286.73992899,0.00022804,2]
[372491288,1752663040398,-1000.0,0.00022948,2]
[372491290,1752663040410,-768.34910746,0.00022969,8]
[372491292,1752663040419,-215.5496034,0.00023,3]
[372491294,1752663040428,-845.86,0.00023013,2]
[372491296,1752663040437,-460.0,0.00023013,2]
[372491298,1752663040446,-460.0,0.00023013,2]
[372491300,1752663040456,-460.0,0.00023013,2]
[372491302,1752663040466,-1046.58,0.00023013,2]
[372491304,1752663040475,-561.0454217,0.00023013,2]
[372491306,1752663040485,-481.44,0.00023013,2]
[372491308,1752663040494,-460.0,0.00023013,2]
[372491310,1752663040503,-2219.29,0.00023013,2]
[372491312,1752663040512,-460.0,0.00023013,2]
[372491314,1752663040521,-822.53,0.00023013,2]
[372491316,1752663040531,-690.47,0.00023013,2]
[372491318,1752663040540,-1211.98,0.00023013,2]
[372491320,1752663040550,-735.49,0.00023013,2]
[372491322,1752663040559,-632.06,0.00023013,2]
[372491324,1752663040568,-1390.3,0.00023013,2]
[372491326,1752663040578,-738.43,0.00023013,2]
[372491328,1752663040587,-460.0,0.00023013,2]
[372491330,1752663040596,-460.0,0.00023013,2]
[372491332,1752663040605,-460.0,0.00023013,2]
[372491334,1752663040615,-768.34910746,0.00023141,8]
[372491336,1752663040624,-845.86,0.00023287,2]
[372491338,1752663040634,-460.0,0.00023287,2]
[372491340,1752663040643,-460.0,0.00023287,2]
[372491342,1752663040652,-460.0,0.00023287,2]
[372491344,1752663040661,-1046.58,0.00023287,2]
[372491346,1752663040672,-481.44,0.00023287,2]
[372491348,1752663040681,-460.0,0.00023287,2]
[372491350,1752663040690,-2219.29,0.00023287,2]
[372491352,1752663040699,-460.0,0.00023287,2]
[372491354,1752663040708,-822.53,0.00023287,2]
[372491356,1752663040718,-690.47,0.00023287,2]
[372491358,1752663040727,-1211.98,0.00023287,2]
[372491360,1752663040736,-735.49,0.00023287,2]